bitfinex/quotes_SOLUSD_20230101
["timestamp","ask_amount","ask_price","bid_price","bid_amount"]
[1672601232047,24.0356,10.032,10.022,290.19500786]
[1672601232468,24.0356,10.032,10.022,274.3877]
[1672601234253,24.0356,10.032,10.022,290.19500786]
[1672601245940,24.0356,10.032,10.022,274.3877]
[1672601249087,24.0356,10.032,10.022,290.19500786]
[1672601255824,24.0356,10.032,10.022,176.56010786]
[1672601256665,1000.0,10.033,10.022,603.08411768]
[1672601256883,1000.0,10.033,10.024,39.88389004]
[1672601257072,1000.0,10.033,10.026,40.0]
[1672601257282,1000.0,10.033,10.027,94.88]
[1672601257493,1000.0,10.033,10.028,40.0]
[1672601257711,1000.0,10.033,10.03,40.0]
[1672601257912,1000.0,10.033,10.031,74.85]
[1672601267368,1000.0,10.033,10.029,74.86]
[1672601268539,1000.0,10.033,10.03,40.0]
[1672601268761,1000.0,10.033,10.031,74.85]
[1672601269161,1000.0,10.033,10.031,90.65730786]
[1672601270011,1000.0,10.033,10.032,40.0]
[1672601270425,1000.0,10.033,10.032,55.80730786]
[1672601272117,1000.0,10.033,10.032,40.0]
[1672601272313,1000.0,10.033,10.032,55.80730786]
[1672601273466,1000.0,10.033,10.031,74.85]
[1672601278117,1000.0,10.033,10.032,40.0]
[1672601280108,1000.0,10.033,10.031,74.85]
[1672601280325,1000.0,10.033,10.03,74.86]
[1672601280519,1000.0,10.033,10.029,74.86]
[1672601282534,40.0,10.032,10.028,23.3539]
[1672601284745,1000.0,10.033,10.028,23.3539]
[1672601287074,40.0,10.032,10.028,23.3539]
[1672601292416,1000.0,10.033,10.028,23.3539]
[1672601293477,40.0,10.032,10.028,23.3539]
[1672601293909,1000.0,10.033,10.028,23.3539]
[1672601299693,40.0,10.032,10.028,23.3539]
[1672601301374,1000.0,10.033,10.028,23.3539]
[1672601302847,40.0,10.032,10.028,23.3539]
[1672601303246,1000.0,10.033,10.028,23.3539]
[1672601305783,40.0,10.032,10.028,23.3539]
[1672601306100,1000.0,10.033,10.028,23.3539]
[1672601309887,1000.0,10.033,10.028,63.3539]
[1672601310289,1000.0,10.033,10.029,40.0]
[1672601310506,1000.0,10.033,10.029,114.86]
[1672601313453,857.44968901,10.033,10.03,298.7]
[1672601313667,74.72,10.048,10.031,94.85]
[1672601313878,46.9567,10.046,10.033,262.2]
[1672601314072,46.9567,10.046,10.034,257.773]
[1672601314284,46.9567,10.046,10.035,40.0]
[1672601314492,22.9648,10.045,10.036,24.7177]
[1672601314705,22.9648,10.045,10.037,20.0]
[1672601318078,40.0,10.044,10.033,262.2]
[1672601318288,74.76,10.043,10.028,40.0]
[1672601318503,40.0,10.042,10.026,40.0]
[1672601318691,74.77,10.041,10.026,86.4782]
[1672601318910,40.0,10.04,10.027,74.88]
[1672601319455,45.7036,10.039,10.027,238.6608]
[1672601319661,45.7036,10.039,10.028,20.0]
[1672601319858,45.7036,10.039,10.029,74.86]
[1672601320812,45.7036,10.039,10.028,94.87]
[1672601321032,114.8,10.038,10.028,94.87]
[1672601321345,40.0,10.037,10.028,94.87]
[1672601321961,87.5589,10.038,10.028,94.87]
[1672601324494,87.5589,10.038,10.028,203.4529]
[1672601325885,47.5589,10.038,10.029,40.0]
[1672601326194,47.5589,10.038,10.031,40.0]
[1672601327135,47.5589,10.038,10.03,74.86]
[1672601327970,46.5589,10.038,10.031,40.0]
[1672601328180,46.5589,10.038,10.03,74.86]
[1672601328808,46.5589,10.038,10.029,114.86]
[1672601332386,46.5589,10.038,10.029,74.86]
[1672601336915,46.5589,10.038,10.029,98.7494]
[1672601350256,46.5589,10.038,10.03,40.0]
[1672601350457,46.5589,10.038,10.031,74.85]
[1672601353631,46.5589,10.038,10.03,74.86]
[1672601354339,46.5589,10.038,10.031,40.0]
[1672601354552,46.5589,10.038,10.032,74.84]
[1672601356788,46.5589,10.038,10.03,114.86]
[1672601357843,46.5589,10.038,10.03,74.86]
[1672601360676,46.5589,10.038,10.031,40.0]
[1672601362032,46.5589,10.038,10.03,114.86]
[1672601365177,46.5589,10.038,10.031,40.0]
[1672601366568,46.5589,10.038,10.03,74.86]
[1672601370566,46.5589,10.038,10.031,40.0]
[1672601370880,46.5589,10.038,10.032,74.84]
[1672601374230,46.5589,10.038,10.033,40.0]
[1672601376132,74.63947676,10.049,10.034,74.83]
[1672601376332,64.5209,10.048,10.035,20.0]
[1672601376553,64.5209,10.048,10.037,40.0]
[1672601376747,64.5209,10.048,10.038,97.7865]
[1672601376954,64.5209,10.048,10.039,40.0]
[1672601377171,64.5209,10.048,10.04,74.78]
[1672601377374,64.5209,10.048,10.039,97.7765]
[1672601377819,24.5209,10.048,10.039,97.7765]
[1672601379709,64.5209,10.048,10.039,97.7765]
[1672601381908,24.5209,10.048,10.039,97.7765]
[1672601382327,24.5209,10.048,10.04,40.0]
[1672601382550,24.5209,10.048,10.039,97.7765]
[1672601387390,24.5209,10.048,10.04,40.0]
[1672601387573,24.5209,10.048,10.042,40.0]
[1672601388108,24.5209,10.048,10.041,74.77]
[1672601397243,40.0,10.047,10.04,99.0628]
[1672601397458,40.0,10.047,10.04,24.2828]
[1672601398629,114.73,10.047,10.04,24.2828]
[1672601398942,40.0,10.047,10.04,24.2828]
[1672601405883,40.0,10.045,10.033,74.83]
[1672601406077,74.75,10.044,10.033,74.83]
[1672601406288,24.0959,10.043,10.033,74.83]
[1672601406836,64.0959,10.043,10.033,74.83]
[1672601408509,24.0959,10.043,10.033,74.83]
[1672601408703,64.0959,10.043,10.033,74.83]
[1672601409441,64.0959,10.043,10.032,74.84]
[1672601409654,24.5453,10.042,10.032,74.84]
[1672601412188,24.5453,10.042,10.033,40.0]
[1672601412403,24.5453,10.042,10.034,74.83]
[1672601412905,24.5453,10.042,10.035,40.0]
[1672601413114,24.5453,10.042,10.036,74.81]
[1672601415844,24.5453,10.042,10.035,40.0]
[1672601416054,24.5453,10.042,10.036,74.81]
[1672601418467,205.13292464,10.047,10.036,74.81]
[1672601418468,40.0,10.048,10.037,40.0]
[1672601418701,47.9161,10.05,10.039,40.0]
[1672601419009,47.9161,10.05,10.04,74.78]
[1672601419222,40.0,10.049,10.04,74.78]
[1672601419413,40.0,10.049,10.041,24.5788]
[1672601420901,14.57922459,10.048,10.041,24.5788]
[1672601423637,63.4083,10.049,10.041,24.5788]
[1672601428892,62.4083,10.049,10.041,24.5788]
[1672601429102,14.57922459,10.048,10.041,24.5788]
[1672601429512,40.0,10.047,10.041,24.5788]
[1672601430049,54.57922459,10.047,10.041,24.5788]
[1672601432570,40.0,10.047,10.041,24.5788]
[1672601433188,63.85657737,10.048,10.041,24.5788]
[1672601433404,0.09469364,10.046,10.041,24.5788]
[1672601434444,0.09469364,10.046,10.041,99.3488]
[1672601434654,0.09469364,10.046,10.041,24.5788]
[1672601437199,63.9463162,10.048,10.041,24.5788]
[1672601437720,40.0,10.047,10.041,24.5788]
[1672601441389,0.09469364,10.046,10.041,24.5788]
[1672601446129,0.09469364,10.046,10.041,99.3488]
[1672601446449,63.9463162,10.048,10.041,99.3488]
[1672601446662,0.08973883,10.048,10.041,99.3488]
[1672601451158,40.08973883,10.048,10.041,24.5788]
[1672601451373,40.08973883,10.048,10.041,99.3488]
[1672601451885,40.08973883,10.048,10.041,24.5788]
[1672601459776,0.08973883,10.048,10.041,24.5788]
[1672601460422,40.08973883,10.048,10.041,24.5788]
[1672601460955,63.9463162,10.048,10.041,24.5788]
[1672601462111,40.0,10.047,10.041,24.5788]
[1672601462321,63.9463162,10.048,10.041,24.5788]
[1672601462724,40.0,10.047,10.041,24.5788]
[1672601463267,40.09964746,10.047,10.041,24.5788]
[1672601480075,103.95622483,10.047,10.041,24.5788]
[1672601482298,20.0,10.046,10.035,74.82]
[1672601482488,20.0,10.046,10.026,73.83910713]
[1672601482489,74.63947676,10.044,10.032,118.3362]
[1672601482699,40.0,10.042,10.032,118.3362]
[1672601482917,23.0694,10.041,10.032,118.3362]
[1672601483130,202.79164153,10.041,10.032,118.3362]
[1672601483342,230.35359935,10.04,10.032,118.3362]
[1672601483549,421.55809342,10.04,10.032,118.3362]
[1672601483761,40.0,10.038,10.032,118.3362]
[1672601484171,23.0694,10.041,10.032,118.3362]
[1672601485453,23.0694,10.041,10.033,74.83]
[1672601489239,40.0,10.04,10.032,142.3919]
[1672601489551,126.99032981,10.04,10.032,142.3919]
[1672601490475,74.79,10.039,10.032,142.3919]
[1672601490689,89.36922459,10.039,10.032,142.3919]
[1672601491019,86.99032981,10.038,10.032,142.3919]
[1672601491227,40.0,10.037,10.032,142.3919]
[1672601493210,40.0,10.035,10.027,74.88]
[1672601493430,20.0,10.034,10.022,240.3159]
[1672601493641,178.942,10.034,10.023,23.6742]
[1672601493965,40.0,10.033,10.024,74.9]
[1672601494163,62.511,10.033,10.024,74.9]
[1672601497123,149.50132981,10.033,10.024,74.9]
[1672601497336,40.0,10.031,10.023,23.6742]
[1672601497668,86.99032981,10.03,10.023,23.6742]
[1672601498084,40.0,10.029,10.023,23.6742]
[1672601500495,126.99032981,10.029,10.023,23.6742]
[1672601501647,40.0,10.029,10.023,23.6742]
[1672601506396,126.99032981,10.029,10.023,23.6742]
[1672601510808,86.99032981,10.029,10.023,23.6742]
[1672601510998,63.4052,10.031,10.023,23.6742]
[1672601511863,150.39552981,10.031,10.023,23.6742]
[1672601523309,222.89016521,10.031,10.023,23.6742]
[1672601524260,285.75137639,10.031,10.023,23.6742]
[1672601525626,40.0,10.029,10.023,23.6742]
[1672601527420,126.99032981,10.029,10.023,23.6742]
[1672601536354,201.85032981,10.029,10.023,23.6742]
[1672601543623,274.34496521,10.029,10.023,23.6742]
[1672601546354,351.78540098,10.029,10.023,23.6742]
[1672601564433,351.78540098,10.029,10.017,74.95]
[1672601564658,65.7434,10.028,10.014,141.8104]
[1672601564866,74.88,10.027,10.015,74.97]
[1672601565060,40.0,10.025,10.015,74.97]
[1672601565266,42.7069,10.024,10.015,74.97]
[1672601565489,40.0,10.023,10.015,74.97]
[1672601565701,62.7069,10.023,10.015,74.97]
[1672601572524,22.7069,10.023,10.015,74.97]
[1672601574113,62.7069,10.023,10.015,74.97]
[1672601577802,22.7069,10.023,10.015,74.97]
[1672601579698,62.7069,10.023,10.015,74.97]
[1672601580321,62.7069,10.023,10.014,141.8104]
[1672601580849,22.7069,10.023,10.014,141.8104]
[1672601581060,22.7069,10.023,10.015,40.0]
[1672601583053,22.7069,10.023,10.017,40.0]
[1672601583981,106.99032981,10.024,10.017,40.0]
[1672601584197,114.85,10.031,10.018,94.95]
[1672601584412,114.85,10.031,10.019,40.0]
[1672601584616,114.85,10.031,10.02,212.3575]
[1672601584617,40.0,10.031,10.02,212.3575]
[1672601585268,40.0,10.031,10.021,23.8822]
[1672601586218,40.0,10.031,10.021,137.4275]
[1672601587052,109.30225549,10.031,10.021,137.4275]
[1672601587807,109.30225549,10.031,10.022,74.92]
[1672601588028,109.30225549,10.031,10.021,212.3475]
[1672601590214,123.88148008,10.031,10.021,137.4275]
[1672601591713,74.86,10.03,10.021,212.3475]
[1672601592128,198.73148008,10.031,10.021,212.3475]
[1672601593903,198.73148008,10.031,10.021,137.4275]
[1672601604211,40.0,10.029,10.016,74.96]
[1672601604398,94.87,10.028,10.014,24.0093]
[1672601604644,40.0,10.027,10.015,74.97]
[1672601604919,94.89,10.026,10.015,74.97]
[1672601605154,62.6247,10.025,10.015,74.97]
[1672601605357,20.0,10.024,10.015,74.97]
[1672601605648,42.6247,10.024,10.015,74.97]
[1672601607486,40.0,10.023,10.015,74.97]
[1672601607795,40.0,10.023,10.014,98.9893]
[1672601608017,63.7162,10.023,10.014,98.9893]
[1672601612489,147.59768008,10.023,10.014,24.0093]
[1672601612815,199.49489128,10.023,10.014,24.0093]
[1672601613960,76.43564911,10.022,10.014,98.9893]
[1672601614173,40.0,10.021,10.014,24.0093]
[1672601615873,116.43564911,10.021,10.014,24.0093]
[1672601623533,76.43564911,10.021,10.014,24.0093]
[1672601626274,116.43564911,10.021,10.014,24.0093]
[1672601626684,40.0,10.02,10.014,24.0093]
[1672601638056,116.43564911,10.021,10.014,24.0093]
[1672601639942,40.0,10.02,10.014,24.0093]
[1672601640353,116.43564911,10.02,10.014,24.0093]
[1672601642551,76.43564911,10.02,10.014,24.0093]
[1672601642761,64.275,10.022,10.014,24.0093]
[1672601642981,24.275,10.022,10.014,24.0093]
[1672601643198,24.275,10.022,10.014,98.9893]
[1672601643406,24.275,10.022,10.014,24.0093]
[1672601647099,100.71064911,10.022,10.014,24.0093]
[1672601648351,40.0,10.021,10.014,24.0093]
[1672601658658,40.0,10.021,10.014,23.91300287]
[1672601665693,100.71064911,10.022,10.014,23.91300287]
[1672601667578,40.0,10.021,10.014,23.91300287]
[1672601700477,116.43564911,10.021,10.014,23.91300287]
[1672601706807,185.7379046,10.021,10.014,23.91300287]
[1672601707026,260.6579046,10.021,10.014,23.91300287]
[1672601709324,275.23712919,10.021,10.014,23.91300287]
[1672601714694,327.13434039,10.021,10.014,23.91300287]
[1672601731629,312.5551158,10.021,10.014,23.91300287]
[1672601733815,24.275,10.022,10.016,40.0]
[1672601735394,24.275,10.022,10.017,74.95]
[1672601737299,24.275,10.022,10.016,74.96]
[1672601737491,24.275,10.022,10.015,74.97]
[1672601771152,24.275,10.022,10.014,214.06660287]
[1672601774660,24.275,10.022,10.015,40.0]
[1672601774953,24.275,10.022,10.016,74.96]
[1672601777784,24.275,10.022,10.015,74.97]
[1672601784007,24.275,10.022,10.014,74.98]
[1672601796176,24.275,10.022,10.013,74.98]
[1672601796515,24.1203,10.021,10.013,74.98]
[1672601796723,24.1203,10.021,10.012,74.99]
[1672601796934,24.1203,10.02,10.012,74.99]
[1672601810912,64.1203,10.02,10.012,74.99]
[1672601811550,64.1203,10.02,10.011,211.2534]
[1672601834276,24.1203,10.02,10.011,211.2534]
[1672601843655,24.1203,10.02,10.012,40.0]
[1672601843864,24.1203,10.02,10.013,74.98]
[1672601844074,24.1203,10.02,10.012,74.99]
[1672601848891,24.1203,10.02,10.013,40.0]
[1672601849098,24.1203,10.02,10.014,74.98]
[1672601850881,24.1203,10.02,10.013,74.98]
[1672601857940,24.1203,10.02,10.014,40.0]
[1672601858139,24.1203,10.02,10.015,74.97]
[1672601858982,24.1203,10.02,10.016,40.0]
[1672601859196,24.1203,10.02,10.017,74.95]
[1672601859398,23.1594,10.021,10.017,74.95]
[1672601859943,23.1594,10.021,10.018,20.0]
[1672601860147,23.1594,10.021,10.019,114.94]
[1672601860363,23.3541,10.024,10.019,114.94]
[1672601860571,74.92451793,10.028,10.019,114.94]
[1672601861521,74.92451793,10.028,10.02,40.0]
[1672601861710,74.92451793,10.028,10.021,74.92]
[1672601862867,158.6768,10.029,10.021,74.92]
[1672601863086,158.6768,10.029,10.022,40.0]
[1672601864852,158.6768,10.029,10.021,98.4647]
[1672601896074,40.0,10.028,10.021,98.4647]
[1672601896496,158.6768,10.029,10.021,98.4647]
[1672601904496,40.0,10.028,10.021,98.4647]
[1672601907962,40.0,10.028,10.021,23.5447]
[1672601927106,14.57922459,10.027,10.021,23.5447]
[1672601927321,40.0,10.025,10.021,23.5447]
[1672601927526,20.0,10.024,10.019,23.7134]
[1672601928996,20.0,10.024,10.014,74.98]
[1672601929203,40.0,10.023,10.012,74.99]
[1672601929417,86.1766,10.023,10.012,74.99]
[1672601930035,23.6796,10.022,10.012,74.99]
[1672601930997,23.6796,10.021,10.012,74.99]
[1672601942749,23.6796,10.021,10.013,40.0]
[1672601942959,23.6796,10.021,10.014,74.98]
[1672601954746,23.6796,10.021,10.012,74.99]
[1672601955068,23.1467,10.02,10.012,74.99]
[1672601964309,23.1467,10.02,10.013,40.0]
[1672601964533,23.1467,10.02,10.012,74.99]
[1672601965993,23.1467,10.02,10.013,40.0]
[1672601966190,23.1467,10.02,10.014,74.98]
[1672601971132,23.1467,10.02,10.012,74.99]
[1672601981964,23.1467,10.02,10.013,40.0]
[1672601982170,23.1467,10.02,10.014,74.98]
[1672601988578,23.1467,10.02,10.012,74.99]
[1672601995859,23.1467,10.02,10.013,40.0]
[1672601996457,23.1467,10.02,10.012,74.99]
[1672601996674,23.1467,10.02,10.013,40.0]
[1672601997002,23.1467,10.02,10.012,74.99]
[1672601997210,23.1467,10.02,10.013,40.0]
[1672601997725,23.1467,10.02,10.012,74.99]
[1672601999511,23.1467,10.02,10.013,40.0]
[1672602007228,23.1467,10.02,10.015,40.0]
[1672602010582,23.1467,10.02,10.016,74.96]
[1672602010789,23.1467,10.02,10.018,40.0]
[1672602011105,24.9102,10.021,10.019,74.94]
[1672602011326,139.047,10.03,10.02,40.0]
[1672602011727,99.047,10.03,10.02,40.0]
[1672602011944,24.187,10.03,10.02,40.0]
[1672602012162,24.187,10.03,10.02,182.2735]
[1672602012589,24.187,10.03,10.021,74.92]
[1672602012802,24.187,10.03,10.022,40.0]
[1672602015863,24.187,10.03,10.021,217.1935]
[1672602016586,24.187,10.03,10.021,142.2735]
[1672602021436,40.0,10.029,10.021,142.2735]
[1672602029611,105.43669358,10.029,10.021,142.2735]
[1672602030154,167.35437509,10.029,10.021,142.2735]
[1672602038129,40.0,10.027,10.014,74.98]
[1672602038338,20.0,10.026,10.013,74.98]
[1672602038553,179.2549,10.026,10.013,74.98]
[1672602038759,40.0,10.025,10.013,74.98]
[1672602038974,20.0,10.024,10.013,74.98]
[1672602039297,67.8219,10.024,10.013,74.98]
[1672602039928,23.7044,10.023,10.013,74.98]
[1672602040547,23.7044,10.022,10.013,74.98]
[1672602053174,23.7044,10.022,10.014,40.0]
[1672602053387,23.7044,10.022,10.015,74.97]
[1672602054461,23.7044,10.022,10.016,40.0]
[1672602054772,23.7044,10.022,10.017,74.95]
[1672602054981,23.7044,10.022,10.018,40.0]
[1672602057086,23.7044,10.022,10.016,40.0]
[1672602061693,23.7044,10.022,10.015,74.97]
[1672602061905,23.7044,10.022,10.014,74.98]
[1672602062111,23.7044,10.022,10.013,137.764]
[1672602079269,74.85,10.031,10.016,73.83910713]
[1672602079483,24.4992,10.031,10.018,40.0]
[1672602079794,24.4992,10.031,10.019,122.3639]
[1672602079988,24.4992,10.031,10.02,40.0]
[1672602080199,24.4992,10.031,10.022,40.0]
[1672602080941,24.4992,10.031,10.022,64.6779]
[1672602082831,24.4992,10.031,10.022,24.6779]
[1672602083780,40.0,10.03,10.022,24.6779]
[1672602093242,105.43669358,10.03,10.022,24.6779]
[1672602094295,167.35437509,10.03,10.022,24.6779]
[1672602094623,167.35437509,10.03,10.014,74.98]
[1672602094624,74.86,10.029,10.014,74.98]
[1672602094831,20.0,10.028,10.013,98.6225]
[1672602095023,114.88,10.027,10.013,98.6225]
[1672602095234,20.0,10.026,10.013,98.6225]
[1672602095552,40.0,10.024,10.013,98.6225]
[1672602095765,24.6413,10.023,10.013,98.6225]
[1672602096411,24.6413,10.022,10.013,98.6225]
[1672602097577,24.6413,10.022,10.014,40.0]
[1672602097788,24.6413,10.022,10.015,74.97]
[1672602098824,24.6413,10.022,10.014,74.98]
[1672602130053,24.6413,10.022,10.015,40.0]
[1672602130690,24.6413,10.022,10.014,114.98]
[1672602132267,24.6413,10.022,10.014,74.98]
[1672602134887,24.6413,10.022,10.015,40.0]
[1672602135314,24.6413,10.022,10.017,40.0]
[1672602137743,24.6413,10.022,10.015,114.97]
[1672602147298,24.6413,10.022,10.015,74.97]
[1672602155599,24.6413,10.022,10.014,74.98]
[1672602158148,24.6413,10.022,10.015,40.0]
[1672602163411,24.6413,10.022,10.014,114.98]
[1672602166878,24.6413,10.022,10.014,74.98]
[1672602176439,24.6413,10.022,10.015,40.0]
[1672602177173,24.6413,10.022,10.014,74.98]
[1672602188105,24.6413,10.022,10.015,40.0]
[1672602190432,24.6413,10.022,10.014,114.98]
[1672602190733,24.6413,10.022,10.015,40.0]
[1672602196202,24.6413,10.022,10.014,114.98]
[1672602198096,24.6413,10.022,10.015,40.0]
[1672602198309,24.6413,10.022,10.014,114.98]
[1672602199445,24.6413,10.022,10.015,40.0]
[1672602200198,24.6413,10.022,10.014,114.98]
[1672602200409,24.6413,10.022,10.014,40.0]
[1672602203137,24.6413,10.022,10.013,257.3601]
[1672602203338,24.6413,10.022,10.014,40.0]
[1672602204509,40.0,10.02,10.013,142.3801]
[1672602204820,169.2521028,10.02,10.013,142.3801]
[1672602205030,86.15670649,10.019,10.013,142.3801]
[1672602206605,163.90760202,10.019,10.013,142.3801]
[1672602207451,86.15670649,10.018,10.013,142.3801]
[1672602209767,163.90760202,10.018,10.013,142.3801]
[1672602210806,40.0,10.017,10.013,142.3801]
[1672602211228,40.0,10.017,10.01,75.01]
[1672602211870,40.0,10.017,10.01,99.988]
[1672602216276,40.0,10.017,10.01,24.978]
[1672602216489,203.90760202,10.017,10.01,24.978]
[1672602218191,163.90760202,10.017,10.01,24.978]
[1672602219240,86.15670649,10.017,10.01,24.978]
[1672602219442,86.15670649,10.017,10.011,40.0]
[1672602219653,86.15670649,10.017,10.01,24.978]
[1672602233618,40.0,10.019,10.01,24.978]
[1672602233829,86.15670649,10.018,10.011,24.5465]
[1672602238681,40.0,10.017,10.011,24.5465]
[1672602239618,126.15670649,10.017,10.011,24.5465]
[1672602242684,203.90760202,10.017,10.011,24.5465]
[1672602245401,126.46120727,10.016,9.999,73.83910713]
[1672602245729,261.05343187,10.015,10.003,114.8342]
[1672602245928,94.98,10.014,10.003,114.8342]
[1672602246146,40.0,10.013,10.003,114.8342]
[1672602246356,183.30253634,10.013,10.003,114.8342]
[1672602247598,22.958,10.012,10.003,114.8342]
[1672602248865,40.0,10.011,10.003,114.8342]
[1672602249287,62.958,10.011,10.003,114.8342]
[1672602249710,226.86560202,10.011,10.003,114.8342]
[1672602254640,149.11470649,10.011,10.003,114.8342]
[1672602265803,206.26053634,10.011,10.003,114.8342]
[1672602266148,40.0,10.009,10.003,114.8342]
[1672602268416,126.15670649,10.009,10.003,114.8342]
[1672602269909,40.0,10.007,9.9931,75.13]
[1672602270126,40.0,10.007,9.9886,40.0]
[1672602270127,75.04,10.006,9.989,159.5692]
[1672602270330,40.0,10.004,9.9892,40.0]
[1672602270542,40.0,10.004,9.9901,40.0]
[1672602270751,183.30253634,10.004,9.9902,75.15]
[1672602270972,183.30253634,10.004,9.9903,40.0]
[1672602271185,183.30253634,10.004,9.991,159.5692]
[1672602271375,183.30253634,10.004,9.9911,115.15]
[1672602271586,183.30253634,10.004,9.9912,40.0]
[1672602271795,183.30253634,10.004,9.992,159.5692]
[1672602272024,183.30253634,10.004,9.9921,115.14]
[1672602272429,183.30253634,10.004,9.9931,40.0]
[1672602272639,183.30253634,10.004,9.9933,40.0]
[1672602272861,183.30253634,10.004,9.9934,75.13]
[1672602273178,57.14582985,10.004,9.9935,40.0]
[1672602273393,57.14582985,10.004,9.9937,40.0]
[1672602273595,57.14582985,10.004,9.9938,75.13]
[1672602273800,57.14582985,10.004,9.9939,40.0]
[1672602274006,57.14582985,10.004,9.9941,40.0]
[1672602274339,57.14582985,10.004,9.9943,40.0]
[1672602274529,57.14582985,10.004,9.9944,75.12]
[1672602274740,57.14582985,10.004,9.9945,40.0]
[1672602274963,57.14582985,10.004,9.9947,40.0]
[1672602275171,57.14582985,10.004,9.9948,75.12]
[1672602275386,57.14582985,10.004,9.9949,40.0]
[1672602275916,57.14582985,10.004,9.9951,40.0]
[1672602276104,57.14582985,10.004,9.9952,75.12]
[1672602276316,57.14582985,10.004,9.9953,40.0]
[1672602276552,57.14582985,10.004,9.9955,40.0]
[1672602276744,57.14582985,10.004,9.9956,75.11]
[1672602277071,57.14582985,10.004,9.9957,40.0]
[1672602277399,57.14582985,10.004,9.9959,40.0]
[1672602277597,57.14582985,10.004,9.9961,40.0]
[1672602277789,57.14582985,10.004,9.9962,75.11]
[1672602278002,57.14582985,10.004,9.9963,40.0]
[1672602278211,57.14582985,10.004,9.9965,40.0]
[1672602280526,57.14582985,10.004,9.9967,40.0]
[1672602284017,20.0,10.005,9.9967,40.0]
[1672602284325,20.0,10.004,9.9968,75.1]
[1672602284536,20.0,10.006,9.9968,75.1]
[1672602285149,20.0,10.006,9.9969,40.0]
[1672602285377,20.0,10.006,9.997,75.1]
[1672602285572,20.0,10.006,9.9971,40.0]
[1672602285788,20.0,10.006,9.9973,40.0]
[1672602286111,20.0,10.006,9.9974,75.1]
[1672602286326,20.0,10.006,9.9975,40.0]
[1672602286513,20.0,10.006,9.9977,40.0]
[1672602286720,20.0,10.006,9.9978,75.1]
[1672602287062,20.0,10.006,9.9977,40.0]
[1672602287373,33.73079134,10.006,9.9977,40.0]
[1672602288209,20.0,10.006,9.9977,40.0]
[1672602288409,20.0,10.006,9.9979,40.0]
[1672602288627,20.0,10.006,9.9981,40.0]
[1672602296513,60.0,10.006,9.9981,40.0]
[1672602297247,20.0,10.006,9.9981,40.0]
[1672602297668,20.0,10.006,9.9978,75.1]
[1672602297885,97.75471403,10.006,9.9978,75.1]
[1672602298077,137.75471403,10.006,9.9966,75.11]
[1672602298289,137.75471403,10.006,9.997,75.1]
[1672602298504,151.48550537,10.006,9.9959,40.0]
[1672602298714,151.48550537,10.006,9.996,75.11]
[1672602298924,40.0,10.005,9.9961,40.0]
[1672602299135,20.0,10.004,9.9962,75.11]
[1672602299652,20.0,10.004,9.9963,40.0]
[1672602299864,20.0,10.004,9.9964,75.11]
[1672602300427,20.0,10.004,9.9965,40.0]
[1672602301478,20.0,10.004,9.9967,40.0]